[Event "Late-Titled-Tuesday-Blitz-September-05-2023"]
[Site "Chess.com"]
[Date "2023.09.05"]
[Round "11"]
[White "Murad_Ibrahimli"]
[Black "cassoulet"]
[Result "0-1"]
[WhiteElo "2894"]
[BlackElo "2762"]
[TimeControl "180+1"]
[EndTime "16:05:37 PDT"]
[Termination "cassoulet won by resignation"]

1. e4 {[%clk 0:02:59.4]} 1... c5 {[%clk 0:02:58.7]} 2. Nf3 {[%clk 0:02:59.6]}
2... Nc6 {[%clk 0:02:57.4]} 3. d4 {[%clk 0:02:58]} 3... cxd4 {[%clk 0:02:58.3]}
4. Nxd4 {[%clk 0:02:58.6]} 4... Nf6 {[%clk 0:02:58.8]} 5. Nc3 {[%clk 0:02:59.2]}
5... e6 {[%clk 0:02:59.4]} 6. Nxc6 {[%clk 0:02:57.9]} 6... bxc6 {[%clk
0:03:00.3]} 7. e5 {[%clk 0:02:58.5]} 7... Nd5 {[%clk 0:03:00.6]} 8. Ne4 {[%clk
0:02:59.1]} 8... Bb7 {[%clk 0:02:57.7]} 9. a3 {[%clk 0:02:52.1]} 9... Qa5+
{[%clk 0:02:52.8]} 10. Bd2 {[%clk 0:02:46.3]} 10... Qc7 {[%clk 0:02:52.6]} 11.
f4 {[%clk 0:02:45.9]} 11... c5 {[%clk 0:02:43.7]} 12. Qe2 {[%clk 0:02:21.8]}
12... Qc6 {[%clk 0:02:27]} 13. Nc3 {[%clk 0:02:17.3]} 13... Be7 {[%clk
0:02:19.6]} 14. O-O-O {[%clk 0:02:08.2]} 14... O-O {[%clk 0:02:19]} 15. Nxd5
{[%clk 0:02:02.2]} 15... exd5 {[%clk 0:02:18.3]} 16. f5 {[%clk 0:02:01.4]} 16...
Rfe8 {[%clk 0:02:16.5]} 17. g4 {[%clk 0:01:38.5]} 17... Bf6 {[%clk 0:02:01.3]}
18. exf6 {[%clk 0:01:35.5]} 18... Rxe2 {[%clk 0:02:00.6]} 19. Bxe2 {[%clk
0:01:36.4]} 19... Qxf6 {[%clk 0:01:59.2]} 20. Rhe1 {[%clk 0:01:30.6]} 20... d4
{[%clk 0:01:58.2]} 21. Bd3 {[%clk 0:01:27.1]} 21... Bf3 {[%clk 0:01:56.7]} 22.
g5 {[%clk 0:01:26.1]} 22... Qc6 {[%clk 0:01:53.7]} 23. Be2 {[%clk 0:01:24.7]}
23... Be4 {[%clk 0:01:44.7]} 24. Bb5 {[%clk 0:01:14.2]} 24... Qd5 {[%clk
0:01:38.4]} 25. f6 {[%clk 0:01:06]} 25... Qa2 {[%clk 0:01:21]} 26. Bf4 {[%clk
0:01:06]} 26... Qa1+ {[%clk 0:01:08.6]} 27. Kd2 {[%clk 0:01:05.5]} 27... Qxb2
{[%clk 0:01:09.5]} 28. Rxe4 {[%clk 0:01:05]} 28... Qxb5 {[%clk 0:01:09.5]} 29.
Rde1 {[%clk 0:01:04.9]} 29... d5 {[%clk 0:01:06.8]} 30. Re7 {[%clk 0:01:04]}
30... gxf6 {[%clk 0:01:01.1]} 31. gxf6 {[%clk 0:01:03.9]} 31... c4 {[%clk
0:00:42.9]} 32. R1e2 {[%clk 0:00:22.3]} 32... h6 {[%clk 0:00:28.2]} 33. Rg2+
{[%clk 0:00:17.2]} 33... Kh8 {[%clk 0:00:27.2]} 34. Rxf7 {[%clk 0:00:06.7]}
34... c3+ {[%clk 0:00:26.9]} 35. Ke1 {[%clk 0:00:03.8]} 35... Qb1+ {[%clk
0:00:21.1]} 36. Kf2 {[%clk 0:00:03.3]} 36... Qxc2+ {[%clk 0:00:21.3]} 37. Kg1
{[%clk 0:00:03.5]} 37... Qd1+ {[%clk 0:00:13.3]} 38. Kf2 {[%clk 0:00:04.2]}
38... Re8 {[%clk 0:00:09.9]} 39. Rgg7 {[%clk 0:00:04]} 39... Qe1+ {[%clk
0:00:08.8]} 40. Kf3 {[%clk 0:00:03.8]} 40... Qf1+ {[%clk 0:00:07.1]} 41. Kg4
{[%clk 0:00:04.3]} 41... Qg2+ {[%clk 0:00:06.5]} 42. Kh4 {[%clk 0:00:04.3]}
42... Qf2+ {[%clk 0:00:05.9]} 43. Bg3 {[%clk 0:00:04.7]} 43... Qf5 {[%clk
0:00:05.8]} 44. Re7 {[%clk 0:00:03]} 44... Qxf6+ {[%clk 0:00:04.8]} 45. Kh5
{[%clk 0:00:03]} 45... Rxe7 {[%clk 0:00:05.4]} 0-1

[Event "Late-Titled-Tuesday-Blitz-September-05-2023"]
[Site "Chess.com"]
[Date "2023.09.05"]
[Round "11"]
[White "ninguno46"]
[Black "cthulhuuu"]
[Result "1-0"]
[WhiteElo "2602"]
[BlackElo "2464"]
[TimeControl "180+1"]
[EndTime "16:05:37 PDT"]
[Termination "ninguno46 won by resignation"]

1. c4 {[%clk 0:02:58.7]} 1... Nf6 {[%clk 0:03:00.1]} 2. Nf3 {[%clk 0:02:57.7]}
2... g6 {[%clk 0:03:00.2]} 3. Nc3 {[%clk 0:02:56.9]} 3... Bg7 {[%clk 0:03:00.6]}
4. e4 {[%clk 0:02:57.2]} 4... d6 {[%clk 0:03:00.8]} 5. d4 {[%clk 0:02:57.7]}
5... O-O {[%clk 0:03:00.8]} 6. Be2 {[%clk 0:02:58.3]} 6... e5 {[%clk 0:03:00.9]}
7. O-O {[%clk 0:02:58.7]} 7... exd4 {[%clk 0:02:54.7]} 8. Nxd4 {[%clk
0:02:58.1]} 8... Re8 {[%clk 0:02:55.2]} 9. f3 {[%clk 0:02:57.8]} 9... Nbd7
{[%clk 0:02:56]} 10. Kh1 {[%clk 0:02:57.1]} 10... a5 {[%clk 0:02:53.2]} 11. Bg5
{[%clk 0:02:55.4]} 11... h6 {[%clk 0:02:51.2]} 12. Bh4 {[%clk 0:02:52.4]} 12...
Nc5 {[%clk 0:02:51.3]} 13. Ndb5 {[%clk 0:02:48.6]} 13... g5 {[%clk 0:02:23.7]}
14. Bf2 {[%clk 0:02:47.3]} 14... Ne6 {[%clk 0:02:23.8]} 15. Re1 {[%clk
0:02:43.3]} 15... Nd7 {[%clk 0:02:13.9]} 16. Rc1 {[%clk 0:02:38.5]} 16... Ne5
{[%clk 0:02:11.4]} 17. Rc2 {[%clk 0:02:34.3]} 17... Bd7 {[%clk 0:02:05]} 18. Rd2
{[%clk 0:02:33.5]} 18... b6 {[%clk 0:01:18.6]} 19. Nd5 {[%clk 0:02:20.8]} 19...
Bxb5 {[%clk 0:01:08.1]} 20. cxb5 {[%clk 0:02:19.9]} 20... Nc5 {[%clk 0:01:08.1]}
21. Ne3 {[%clk 0:02:13.2]} 21... Ng6 {[%clk 0:00:47.2]} 22. Nf5 {[%clk 0:02:12]}
22... Qf6 {[%clk 0:00:41.1]} 23. Bd4 {[%clk 0:01:54.2]} 23... Ne5 {[%clk
0:00:41.4]} 24. Bc3 {[%clk 0:01:52.8]} 24... Ne6 {[%clk 0:00:36.9]} 25. g3
{[%clk 0:01:41.2]} 25... Bh8 {[%clk 0:00:36.7]} 26. Rf1 {[%clk 0:01:40.4]} 26...
Qg6 {[%clk 0:00:37]} 27. f4 {[%clk 0:01:37.7]} 27... Nd7 {[%clk 0:00:15.9]} 28.
Bh5 {[%clk 0:01:29.8]} 28... Qh7 {[%clk 0:00:13.1]} 29. Bxh8 {[%clk 0:01:21.4]}
29... Qxh8 {[%clk 0:00:13.6]} 30. e5 {[%clk 0:01:20.6]} 30... Ndc5 {[%clk
0:00:06.7]} 31. exd6 {[%clk 0:01:18.1]} 31... cxd6 {[%clk 0:00:07.6]} 32. Nxd6
{[%clk 0:01:14.7]} 32... Re7 {[%clk 0:00:08.3]} 33. f5 {[%clk 0:01:10.2]} 33...
Ng7 {[%clk 0:00:06.6]} 34. f6 {[%clk 0:01:08]} 34... Nxh5 {[%clk 0:00:07.2]} 35.
fxe7 {[%clk 0:01:07.1]} 35... Qe5 {[%clk 0:00:06.9]} 36. Re2 {[%clk 0:01:04.7]}
36... Nxg3+ {[%clk 0:00:03.8]} 37. hxg3 {[%clk 0:01:04]} 37... Qxg3 {[%clk
0:00:04.7]} 38. e8=Q+ {[%clk 0:00:59.7]} 38... Rxe8 {[%clk 0:00:05.6]} 39. Rxe8+
{[%clk 0:00:59.5]} 39... Kh7 {[%clk 0:00:06]} 40. Rxf7+ {[%clk 0:00:58.6]} 40...
Kg6 {[%clk 0:00:06.3]} 41. Qc2+ {[%clk 0:00:55.5]} 41... Nd3 {[%clk 0:00:05.1]}
42. Re6+ {[%clk 0:00:53.6]} 42... Kh5 {[%clk 0:00:04.5]} 43. Qh2+ {[%clk
0:00:53.9]} 43... Qxh2+ {[%clk 0:00:03.8]} 44. Kxh2 {[%clk 0:00:53.9]} 44... Nc5
{[%clk 0:00:03.6]} 45. Re3 {[%clk 0:00:51.6]} 45... g4 {[%clk 0:00:03.8]} 46.
Re5+ {[%clk 0:00:50]} 46... Kh4 {[%clk 0:00:04.2]} 47. Nf5+ {[%clk 0:00:50.1]}
47... Kg5 {[%clk 0:00:04.2]} 48. Nd4+ {[%clk 0:00:48.9]} 48... Kg6 {[%clk
0:00:04.9]} 49. Rxc5 {[%clk 0:00:48.5]} 49... bxc5 {[%clk 0:00:04]} 50. b6
{[%clk 0:00:47.7]} 50... cxd4 {[%clk 0:00:03.8]} 51. Rd7 {[%clk 0:00:47.8]}
51... h5 {[%clk 0:00:03.2]} 52. b7 {[%clk 0:00:47.6]} 52... h4 {[%clk
0:00:03.5]} 53. b8=Q {[%clk 0:00:47.9]} 53... g3+ {[%clk 0:00:04.1]} 54. Kh3
{[%clk 0:00:47.7]} 54... g2 {[%clk 0:00:04.5]} 55. Kxg2 {[%clk 0:00:45.8]} 1-0

[Event "Late-Titled-Tuesday-Blitz-September-05-2023"]
[Site "Chess.com"]
[Date "2023.09.05"]
[Round "11"]
[White "realburq"]
[Black "Langua_Chess"]
[Result "0-1"]
[WhiteElo "2395"]
[BlackElo "2491"]
[TimeControl "180+1"]
[EndTime "16:05:38 PDT"]
[Termination "Langua_Chess won by resignation"]

1. e4 {[%clk 0:03:00.9]} 1... c6 {[%clk 0:02:59]} 2. Nc3 {[%clk 0:03:00.7]} 2...
d5 {[%clk 0:02:58.6]} 3. Nf3 {[%clk 0:03:01.5]} 3... Bg4 {[%clk 0:02:57.5]} 4.
h3 {[%clk 0:03:01.4]} 4... Bxf3 {[%clk 0:02:58]} 5. Qxf3 {[%clk 0:03:02.3]} 5...
e6 {[%clk 0:02:58.8]} 6. d3 {[%clk 0:03:02.5]} 6... Nf6 {[%clk 0:02:41]} 7. g3
{[%clk 0:03:02.5]} 7... d4 {[%clk 0:02:36.3]} 8. Nb1 {[%clk 0:02:56.8]} 8... c5
{[%clk 0:02:22.9]} 9. Bg2 {[%clk 0:02:43.5]} 9... Nc6 {[%clk 0:02:22.4]} 10. O-O
{[%clk 0:02:43]} 10... Be7 {[%clk 0:02:17.5]} 11. Nd2 {[%clk 0:02:40.7]} 11...
h5 {[%clk 0:02:12.8]} 12. a4 {[%clk 0:02:38.8]} 12... h4 {[%clk 0:02:04.8]} 13.
g4 {[%clk 0:02:24.3]} 13... e5 {[%clk 0:02:01.1]} 14. Nc4 {[%clk 0:02:23.6]}
14... Nd7 {[%clk 0:01:57.6]} 15. Qe2 {[%clk 0:02:23]} 15... g5 {[%clk
0:01:54.8]} 16. c3 {[%clk 0:02:20.6]} 16... O-O {[%clk 0:01:44.8]} 17. Bd2
{[%clk 0:02:09.3]} 17... Kg7 {[%clk 0:01:39]} 18. Qe1 {[%clk 0:02:00.6]} 18...
b6 {[%clk 0:01:33.4]} 19. Qb1 {[%clk 0:01:59.9]} 19... a6 {[%clk 0:01:21]} 20.
Rc1 {[%clk 0:01:56.2]} 20... b5 {[%clk 0:01:14.7]} 21. axb5 {[%clk 0:01:54.7]}
21... axb5 {[%clk 0:01:15.5]} 22. Rxa8 {[%clk 0:01:54.4]} 22... Qxa8 {[%clk
0:01:16.2]} 23. Na3 {[%clk 0:01:54.7]} 23... Qa6 {[%clk 0:01:10.3]} 24. Bf1
{[%clk 0:01:53.6]} 24... dxc3 {[%clk 0:01:01.6]} 25. Bxc3 {[%clk 0:01:17.6]}
25... b4 {[%clk 0:01:00.9]} 26. d4 {[%clk 0:01:18.1]} 26... Qb7 {[%clk
0:00:54.9]} 27. dxe5 {[%clk 0:00:45.5]} 27... bxc3 {[%clk 0:00:54]} 28. Rxc3
{[%clk 0:00:44.1]} 28... Ndxe5 {[%clk 0:00:48.3]} 29. Nc4 {[%clk 0:00:40.5]}
29... Nxc4 {[%clk 0:00:43.8]} 30. Bxc4 {[%clk 0:00:40.1]} 30... Nd4 {[%clk
0:00:41.2]} 31. Kg2 {[%clk 0:00:38.7]} 31... Bf6 {[%clk 0:00:35.7]} 32. Bd5
{[%clk 0:00:38.1]} 32... Qb6 {[%clk 0:00:24.8]} 33. Re3 {[%clk 0:00:38.3]} 33...
Be5 {[%clk 0:00:22.6]} 34. Ra3 {[%clk 0:00:34.5]} 34... Ne6 {[%clk 0:00:14.7]}
35. Kh1 {[%clk 0:00:31.6]} 35... Qxb2 {[%clk 0:00:13.1]} 36. Qxb2 {[%clk
0:00:27.4]} 36... Bxb2 {[%clk 0:00:12.8]} 37. Ra7 {[%clk 0:00:28.3]} 37... Nf4
{[%clk 0:00:11.1]} 38. Bc4 {[%clk 0:00:28.1]} 38... Bd4 {[%clk 0:00:11.2]} 39.
Kh2 {[%clk 0:00:25.9]} 39... Bxf2 {[%clk 0:00:11]} 40. Rd7 {[%clk 0:00:26.5]}
40... Bg3+ {[%clk 0:00:11.4]} 41. Kg1 {[%clk 0:00:26.2]} 41... Nxh3+ {[%clk
0:00:11.9]} 42. Kf1 {[%clk 0:00:26.5]} 42... Nf4 {[%clk 0:00:12.5]} 43. e5
{[%clk 0:00:25.2]} 43... h3 {[%clk 0:00:07.6]} 44. Bd5 {[%clk 0:00:22.7]} 44...
Nxd5 {[%clk 0:00:06]} 45. Rxd5 {[%clk 0:00:23.6]} 45... Re8 {[%clk 0:00:06.2]}
46. Kg1 {[%clk 0:00:19.6]} 46... Rxe5 {[%clk 0:00:06.4]} 47. Rxe5 {[%clk
0:00:20.3]} 47... Bxe5 {[%clk 0:00:06.1]} 48. Kh1 {[%clk 0:00:20.8]} 48... Bg3
{[%clk 0:00:06.1]} 49. Kg1 {[%clk 0:00:21.2]} 49... Kf6 {[%clk 0:00:06.7]} 50.
Kf1 {[%clk 0:00:21.9]} 50... Ke5 {[%clk 0:00:07.3]} 51. Ke2 {[%clk 0:00:22.8]}
51... Kf4 {[%clk 0:00:07.8]} 52. Kd3 {[%clk 0:00:22.7]} 52... Kxg4 {[%clk
0:00:08.5]} 53. Kc4 {[%clk 0:00:23.6]} 53... f5 {[%clk 0:00:09]} 54. Kxc5 {[%clk
0:00:24.5]} 54... f4 {[%clk 0:00:09.7]} 55. Kd4 {[%clk 0:00:25.3]} 55... f3
{[%clk 0:00:08.7]} 56. Kd3 {[%clk 0:00:26.2]} 56... Kf4 {[%clk 0:00:08.8]} 57.
Kd2 {[%clk 0:00:26.4]} 57... Bf2 {[%clk 0:00:09.1]} 58. Kd1 {[%clk 0:00:26.7]}
58... g4 {[%clk 0:00:09.7]} 59. Kd2 {[%clk 0:00:27.5]} 59... g3 {[%clk
0:00:10.4]} 60. Kd3 {[%clk 0:00:28.4]} 60... g2 {[%clk 0:00:11.1]} 0-1

[Event "Late-Titled-Tuesday-Blitz-September-05-2023"]
[Site "Chess.com"]
[Date "2023.09.05"]
[Round "11"]
[White "bazar-wokzal"]
[Black "PepeCuenca"]
[Result "0-1"]
[WhiteElo "2528"]
[BlackElo "2672"]
[TimeControl "180+1"]
[EndTime "16:05:39 PDT"]
[Termination "PepeCuenca won by resignation"]

1. e4 {[%clk 0:03:00.9]} 1... d6 {[%clk 0:03:00.3]} 2. f4 {[%clk 0:03:00.4]}
2... Nf6 {[%clk 0:03:00.3]} 3. Nc3 {[%clk 0:02:59.1]} 3... e5 {[%clk 0:03:00.8]}
4. Nf3 {[%clk 0:02:58.5]} 4... Be7 {[%clk 0:03:01.5]} 5. Bc4 {[%clk 0:02:57.1]}
5... exf4 {[%clk 0:02:51.8]} 6. d4 {[%clk 0:02:56.9]} 6... Nh5 {[%clk
0:02:43.6]} 7. O-O {[%clk 0:02:47.1]} 7... O-O {[%clk 0:02:43]} 8. Nd5 {[%clk
0:02:44.6]} 8... Be6 {[%clk 0:02:24.9]} 9. Bb3 {[%clk 0:02:29.2]} 9... Re8
{[%clk 0:02:02.4]} 10. Nxf4 {[%clk 0:02:27]} 10... Nxf4 {[%clk 0:02:01.1]} 11.
Bxf4 {[%clk 0:02:26.9]} 11... Bxb3 {[%clk 0:01:56.2]} 12. axb3 {[%clk 0:02:27]}
12... Nd7 {[%clk 0:01:55.3]} 13. Qd3 {[%clk 0:02:23.9]} 13... a6 {[%clk
0:01:47]} 14. Rf2 {[%clk 0:02:19.2]} 14... Nf6 {[%clk 0:01:44.5]} 15. Raf1
{[%clk 0:02:15]} 15... c5 {[%clk 0:01:30.2]} 16. d5 {[%clk 0:02:02.6]} 16... Ng4
{[%clk 0:01:29.8]} 17. Re2 {[%clk 0:02:01.9]} 17... Bf6 {[%clk 0:01:29.4]} 18.
c4 {[%clk 0:01:51.8]} 18... Ne5 {[%clk 0:01:25.2]} 19. Nxe5 {[%clk 0:01:42.4]}
19... Bxe5 {[%clk 0:01:25.2]} 20. Ref2 {[%clk 0:01:40]} 20... f6 {[%clk
0:01:23.8]} 21. Bxe5 {[%clk 0:01:37.7]} 21... Rxe5 {[%clk 0:01:23.7]} 22. Rf5
{[%clk 0:01:32.2]} 22... Qe7 {[%clk 0:01:20.4]} 23. Rxe5 {[%clk 0:01:09.4]}
23... Qxe5 {[%clk 0:01:20.3]} 24. Qg3 {[%clk 0:00:59.2]} 24... Qxg3 {[%clk
0:01:03.5]} 25. hxg3 {[%clk 0:00:59.1]} 25... Re8 {[%clk 0:01:04.2]} 26. Rf4
{[%clk 0:00:57.3]} 26... Kf7 {[%clk 0:01:03.3]} 27. Kf2 {[%clk 0:00:57.3]} 27...
g5 {[%clk 0:01:02]} 28. Rf3 {[%clk 0:00:51.6]} 28... Rxe4 {[%clk 0:01:01.7]} 29.
Rc3 {[%clk 0:00:49.5]} 29... f5 {[%clk 0:00:59.8]} 30. Rc1 {[%clk 0:00:47.7]}
30... Kg6 {[%clk 0:00:58.1]} 31. b4 {[%clk 0:00:31.5]} 31... cxb4 {[%clk
0:00:48.9]} 32. c5 {[%clk 0:00:31.6]} 32... dxc5 {[%clk 0:00:49.2]} 33. Rxc5
{[%clk 0:00:31.4]} 33... h5 {[%clk 0:00:31.6]} 34. Rc7 {[%clk 0:00:30.7]} 34...
Rd4 {[%clk 0:00:31.7]} 35. Rxb7 {[%clk 0:00:30.3]} 35... Rxd5 {[%clk 0:00:31.7]}
36. Rb6+ {[%clk 0:00:30.5]} 36... Kg7 {[%clk 0:00:30.3]} 37. Rxb4 {[%clk
0:00:29.9]} 37... Rd6 {[%clk 0:00:26.3]} 38. Ke3 {[%clk 0:00:26.7]} 38... Kf6
{[%clk 0:00:26.1]} 39. Rb8 {[%clk 0:00:25.7]} 39... Ke5 {[%clk 0:00:23.1]} 40.
Rg8 {[%clk 0:00:22]} 40... g4 {[%clk 0:00:20.6]} 41. Rh8 {[%clk 0:00:20.5]}
41... Rb6 {[%clk 0:00:20.3]} 42. Rxh5 {[%clk 0:00:19.6]} 42... Rb3+ {[%clk
0:00:19.7]} 43. Kf2 {[%clk 0:00:19]} 43... Rxb2+ {[%clk 0:00:20.3]} 44. Kg1
{[%clk 0:00:19.3]} 44... Rb7 {[%clk 0:00:19.1]} 45. Kf2 {[%clk 0:00:07.9]} 45...
a5 {[%clk 0:00:19.2]} 46. Rh1 {[%clk 0:00:06.1]} 46... a4 {[%clk 0:00:19]} 47.
Ra1 {[%clk 0:00:05.3]} 47... Ra7 {[%clk 0:00:18.8]} 48. Ra3 {[%clk 0:00:05.7]}
48... Kd4 {[%clk 0:00:18.7]} 49. Ke2 {[%clk 0:00:06.1]} 49... Kc4 {[%clk
0:00:19.1]} 50. Kd2 {[%clk 0:00:06.1]} 50... Kb4 {[%clk 0:00:19.4]} 51. Rd3
{[%clk 0:00:05.1]} 51... a3 {[%clk 0:00:19]} 52. Rd4+ {[%clk 0:00:05.4]} 52...
Kb3 {[%clk 0:00:18.8]} 0-1

[Event "Late-Titled-Tuesday-Blitz-September-05-2023"]
[Site "Chess.com"]
[Date "2023.09.05"]
[Round "11"]
[White "Ducke13"]
[Black "DenishevM"]
[Result "0-1"]
[WhiteElo "2483"]
[BlackElo "2645"]
[TimeControl "180+1"]
[EndTime "16:05:51 PDT"]
[Termination "DenishevM won by checkmate"]

1. d4 {[%clk 0:02:56.8]} 1... Nf6 {[%clk 0:02:58.5]} 2. g3 {[%clk 0:02:56.8]}
2... e6 {[%clk 0:02:57.3]} 3. c4 {[%clk 0:02:56.4]} 3... d5 {[%clk 0:02:57.6]}
4. Nf3 {[%clk 0:02:56.7]} 4... Be7 {[%clk 0:02:57.9]} 5. Bg2 {[%clk 0:02:56.9]}
5... O-O {[%clk 0:02:58.6]} 6. O-O {[%clk 0:02:57.5]} 6... dxc4 {[%clk
0:02:58.6]} 7. Qc2 {[%clk 0:02:58.2]} 7... a6 {[%clk 0:02:57.9]} 8. a4 {[%clk
0:02:58.9]} 8... Bd7 {[%clk 0:02:53.3]} 9. Rd1 {[%clk 0:02:59.2]} 9... Bc6
{[%clk 0:02:53.7]} 10. Nc3 {[%clk 0:02:59.9]} 10... Nbd7 {[%clk 0:02:52.6]} 11.
e4 {[%clk 0:02:59.1]} 11... Nb6 {[%clk 0:02:51.4]} 12. a5 {[%clk 0:02:57.5]}
12... Nc8 {[%clk 0:02:51.6]} 13. d5 {[%clk 0:02:50.3]} 13... exd5 {[%clk
0:02:51.5]} 14. e5 {[%clk 0:02:44.7]} 14... Ne8 {[%clk 0:02:45.4]} 15. h4 {[%clk
0:02:13.7]} 15... b5 {[%clk 0:02:33.9]} 16. Nxd5 {[%clk 0:01:58.1]} 16... Bxd5
{[%clk 0:02:33.3]} 17. Ng5 {[%clk 0:01:58.4]} 17... Bxg5 {[%clk 0:02:33.4]} 18.
Rxd5 {[%clk 0:01:51.3]} 18... Qe7 {[%clk 0:02:28.4]} 19. Bxg5 {[%clk 0:01:50.3]}
19... Qe6 {[%clk 0:02:29]} 20. Rad1 {[%clk 0:01:24.4]} 20... Rb8 {[%clk
0:02:26.5]} 21. Kh2 {[%clk 0:01:23.8]} 21... Ne7 {[%clk 0:02:26.6]} 22. Bh3
{[%clk 0:01:17.6]} 22... Qxd5 {[%clk 0:02:16.4]} 23. Rxd5 {[%clk 0:01:05]} 23...
Nxd5 {[%clk 0:02:17.3]} 24. e6 {[%clk 0:01:04.9]} 24... f6 {[%clk 0:02:12.4]}
25. Bd2 {[%clk 0:00:38.9]} 25... Nd6 {[%clk 0:02:03.1]} 26. f4 {[%clk
0:00:38.6]} 26... f5 {[%clk 0:01:54.7]} 27. Bg2 {[%clk 0:00:37.1]} 27... Ne7
{[%clk 0:01:47.7]} 28. Bb4 {[%clk 0:00:35.6]} 28... Rbd8 {[%clk 0:01:46.8]} 29.
Qe2 {[%clk 0:00:24.4]} 29... Rf6 {[%clk 0:01:44.6]} 30. Qe5 {[%clk 0:00:20]}
30... h5 {[%clk 0:01:37.1]} 31. Kh3 {[%clk 0:00:18.2]} 31... Rg6 {[%clk
0:01:35.8]} 32. Bf3 {[%clk 0:00:17.4]} 32... Rh6 {[%clk 0:01:34.3]} 33. Kh2
{[%clk 0:00:15.2]} 33... Nec8 {[%clk 0:01:29.7]} 34. e7 {[%clk 0:00:11.8]} 34...
Re8 {[%clk 0:01:29.9]} 35. Bd5+ {[%clk 0:00:12.2]} 35... Kh7 {[%clk 0:01:29.6]}
36. Be6 {[%clk 0:00:09.6]} 36... Nxe7 {[%clk 0:01:25]} 37. Bxd6 {[%clk
0:00:06.8]} 37... cxd6 {[%clk 0:01:25.7]} 38. Qxd6 {[%clk 0:00:07.3]} 38... Nc8
{[%clk 0:01:23]} 39. Bxf5+ {[%clk 0:00:06.6]} 39... Kh8 {[%clk 0:01:20.7]} 40.
Qd7 {[%clk 0:00:05.8]} 40... Nd6 {[%clk 0:01:19.5]} 41. Bb1 {[%clk 0:00:04.4]}
41... Rf6 {[%clk 0:01:18.3]} 42. Kh3 {[%clk 0:00:04.4]} 42... Ref8 {[%clk
0:01:18.9]} 43. Qe7 {[%clk 0:00:04.3]} 43... Nf5 {[%clk 0:01:19.2]} 44. Bxf5
{[%clk 0:00:03.5]} 44... Rxf5 {[%clk 0:01:20.1]} 45. Qe6 {[%clk 0:00:03.3]}
45... R5f6 {[%clk 0:01:20.6]} 46. Qe5 {[%clk 0:00:03.2]} 46... g6 {[%clk
0:01:21.1]} 47. g4 {[%clk 0:00:02.3]} 47... hxg4+ {[%clk 0:01:21.3]} 48. Kxg4
{[%clk 0:00:03.2]} 48... Kh7 {[%clk 0:01:21.9]} 49. Qe7+ {[%clk 0:00:03.5]}
49... R8f7 {[%clk 0:01:22]} 50. Qe8 {[%clk 0:00:03.5]} 50... Rxf4+ {[%clk
0:01:22.4]} 51. Kg3 {[%clk 0:00:04.3]} 51... Rf3+ {[%clk 0:01:22.8]} 52. Kg2
{[%clk 0:00:05]} 52... Rf2+ {[%clk 0:01:23.2]} 53. Kg3 {[%clk 0:00:05.7]} 53...
R7f3+ {[%clk 0:01:23.3]} 54. Kg4 {[%clk 0:00:06.2]} 54... Rf8 {[%clk 0:01:24.1]}
55. Qe7+ {[%clk 0:00:06.2]} 55... Kg8 {[%clk 0:01:24.4]} 56. Qe6+ {[%clk
0:00:05.6]} 56... Kg7 {[%clk 0:01:25.1]} 57. Qxa6 {[%clk 0:00:05.8]} 57... Rxb2
{[%clk 0:01:18.5]} 58. Qb7+ {[%clk 0:00:05.8]} 58... Rf7 {[%clk 0:01:18.4]} 59.
Qd5 {[%clk 0:00:05.5]} 59... Ra2 {[%clk 0:01:09.2]} 60. Qe5+ {[%clk 0:00:04.4]}
60... Kh7 {[%clk 0:01:08.8]} 61. Qxb5 {[%clk 0:00:04.8]} 61... c3 {[%clk
0:01:08]} 62. Qc4 {[%clk 0:00:05.2]} 62... Rg2+ {[%clk 0:00:59.5]} 63. Kh3
{[%clk 0:00:04.9]} 63... Rgf2 {[%clk 0:00:59.9]} 64. Kg3 {[%clk 0:00:04.1]}
64... c2 {[%clk 0:00:59.5]} 65. a6 {[%clk 0:00:03.8]} 65... R7f3+ {[%clk
0:00:59.4]} 66. Kg4 {[%clk 0:00:04]} 66... Rf4+ {[%clk 0:01:00.3]} 67. Qxf4
{[%clk 0:00:02.7]} 67... Rxf4+ {[%clk 0:01:01.2]} 68. Kxf4 {[%clk 0:00:03.4]}
68... c1=Q+ {[%clk 0:01:01.8]} 69. Kg4 {[%clk 0:00:04.2]} 69... Qa3 {[%clk
0:01:02]} 70. a7 {[%clk 0:00:04.2]} 70... Qxa7 {[%clk 0:01:01.3]} 71. h5 {[%clk
0:00:05.1]} 71... gxh5+ {[%clk 0:01:01]} 72. Kxh5 {[%clk 0:00:05.3]} 72... Qg7
{[%clk 0:01:01.3]} 73. Kh4 {[%clk 0:00:06.2]} 73... Qg6 {[%clk 0:01:01.7]} 74.
Kh3 {[%clk 0:00:06.7]} 74... Qg5 {[%clk 0:01:02.3]} 75. Kh2 {[%clk 0:00:06.8]}
75... Qg4 {[%clk 0:01:02.1]} 76. Kh1 {[%clk 0:00:07.3]} 76... Kg6 {[%clk
0:01:03]} 77. Kh2 {[%clk 0:00:07.3]} 77... Kf5 {[%clk 0:01:03.9]} 78. Kh1 {[%clk
0:00:08.2]} 78... Kf4 {[%clk 0:01:04.8]} 79. Kh2 {[%clk 0:00:09.1]} 79... Kf3
{[%clk 0:01:05.7]} 80. Kh1 {[%clk 0:00:10]} 80... Qg2# {[%clk 0:01:05.9]} 0-1